lending/lending_fUSD_20260306
["ID","MTS","AMOUNT","RATE_DAILY","PERIOD"]
[407834328,1772819443124,-180.22,0.00019942,2]
[407834329,1772819443135,-1532.047401,0.0001997,2]
[407834330,1772819443145,-706.32382314,0.0001997,2]
[407834331,1772819443156,-1000.0,0.0001997,2]
[407834332,1772819443166,-500.0,0.0001997,2]
[407834333,1772819443176,-150.0,0.00019973,2]
[407834334,1772819443186,-534.41020395,0.0001998,2]
[407834335,1772819443196,-263.25713202,0.00019989,2]
[407834336,1772819443207,-156.43,0.0001999,2]
[407834337,1772819443217,-263.25713202,0.0001999,2]
[407834338,1772819443227,-151.0,0.00019996,2]
[407834339,1772819443237,-151.0,0.00019997,2]
[407834340,1772819443247,-151.0,0.00019997,2]
[407834341,1772819443257,-151.0,0.00019997,2]
[407834342,1772819443267,-505.8,0.00019998,2]
[407834344,1772819443279,-3367.3399069,0.00019998,2]
[407834346,1772819443289,-300.0,0.00019999,2]
[407834348,1772819443299,-300.0,0.00019999,2]
[407834350,1772819443309,-300.0,0.00019999,2]
[407834352,1772819443319,-1244.19749992,0.00019999,5]
[407834354,1772819443328,-1244.19749992,0.00019999,5]
[407834356,1772819443338,-11341.1329263,0.00019999,2]
[407834359,1772819443348,-282784.2242402,0.00019999,2]
[407834361,1772819443358,-73082.7862961,0.00019999,2]
[407834363,1772819443368,-14581.4566195,0.00019999,2]
[407834365,1772819443377,-393.28545405,0.00019999,2]
[407834367,1772819443387,-2084.9280718,0.00019999,2]
[407834369,1772819443396,-1271.59435,0.00019999,2]
[407834371,1772819443406,-150.0,0.00019999,2]
[407834373,1772819443415,-263.76858852,0.00019999,2]
[407834375,1772819443425,-2591514.70292834,0.0002,2]
[407834389,1772819443733,-1349.90711029,0.0002,2]
[407834390,1772819443745,-3478.75,0.0002,2]
[407834391,1772819443761,-68000.00000001,0.0002,2]
[407834392,1772819443786,-605.61488071,0.0002,2]
[407834393,1772819443798,-4753.68865087,0.0002,2]
[407834394,1772819444164,-3740.0,0.0002,2]
[407834395,1772819444314,-3400.0,0.0002,2]
[407834396,1772819444329,-1285.66126439,0.0002,2]
[407834397,1772819444356,-173.98462621,0.0002,2]
[407834399,1772819446093,-669.08116327,0.0002,2]
[407834400,1772819446115,-2086.766358,0.0002,2]
[407834401,1772819446126,-9460.56047554,0.0002,2]
[407834402,1772819446141,-271.8394805,0.0002,2]
[407834403,1772819446152,-603099.25138471,0.0002,2]
[407834405,1772819446236,-2348.09,0.0002,2]
[407834406,1772819446248,-34000.0,0.0002,2]
[407834408,1772819536745,412.38678744,0.0001142,2]
[407834409,1772819586658,156.0,0.00013695,2]
[407834410,1772819590217,154.0,0.00013695,2]
[407834415,1772819646186,156.0,0.00013695,2]
[407834416,1772819649115,154.0,0.00013695,2]
[407834417,1772819710404,495.0,0.00013695,2]
[407834418,1772819711080,156.0,0.00013695,2]
[407834419,1772819713884,155.0,0.00013695,2]
[407834420,1772819760690,519.0,0.0001342,2]
[407834421,1772819771586,156.0,0.00013695,2]
[407834422,1772819789530,166.66,0.00013415,2]
[407834423,1772819791512,-166.66,0.00013697,2]
[407834424,1772819807547,-166.66,0.0001398,2]
[407834425,1772819815665,1022.63,0.0001642,120]
[407834426,1772819838335,-156.0,0.00013695,3]
[407834427,1772819909816,156.0,0.00013695,2]
[407834428,1772819946234,156.0,0.00013695,2]
[407834429,1772819963414,-500.0,0.00013879,2]
[407834434,1772820011212,470.0,0.00013695,3]
[407834438,1772820073420,1026.55,0.00013792,2]
[407834440,1772820118685,519.0,0.0001342,2]
[407834441,1772820135751,500.0,0.0001142,2]
[407834442,1772820136354,765.71831369,8.982e-05,2]
[407834443,1772820143117,500.0,0.0001142,2]
[407834444,1772820143391,506.54613806,8.982e-05,2]
[407834445,1772820147745,980.12020361,0.0001142,2]
[407834446,1772820148065,500.0,0.0001142,2]
[407834447,1772820163757,-934.97617135,0.00014,2]
[407834448,1772820163829,-10000.01,0.00014,2]
[407834449,1772820163921,-10000.01,0.00014,2]
[407834450,1772820165097,83.52950571,0.0001,2]
[407834451,1772820165122,500.0,0.0001,2]
[407834452,1772820165148,266.49552142,0.0001,2]
[407834453,1772820165173,243.68411258,0.0001,2]
[407834454,1772820165197,166.50973119,0.0001,2]
[407834455,1772820165222,333.49026881,0.0001,2]
[407834456,1772820165250,369.77132599,0.0001,2]
[407834457,1772820165274,172.50472776,0.0001,2]
[407834458,1772820165299,158.23,0.0001,2]
[407834459,1772820165323,158.23,0.0001,2]
[407834460,1772820165347,374.7479926,0.0001,2]
[407834461,1772820165371,313.39967121,0.0001,2]
[407834462,1772820165624,151.0,0.0001,2]
[407834463,1772820165651,368.0,0.0001,2]
[407834464,1772820165677,63.09461274,0.0001,2]
[407834465,1772820166487,-10000.01,0.00014,2]
[407834466,1772820169556,-3990.01617135,0.00014,2]
[407834467,1772820169580,-2019.9776573,0.00014,2]
[407834468,1772820172698,-219.31882542,0.00014162,2]
[407834469,1772820177768,515.0,0.0001342,2]
[407834470,1772820288089,150.0,0.00013803,2]
[407834471,1772820288308,150.0,0.00013803,120]
[407834473,1772820296499,1852.42,0.00013803,2]
[407834476,1772820310375,446.0,0.00013982,2]
[407834477,1772820377556,511.4953308,0.0001,2]
[407834478,1772820386038,576.0,0.0001342,2]
[407834479,1772820402295,-480.196095,0.00014189,2]
[407834480,1772820406985,156.09212693,0.0001,2]
[407834481,1772820410285,5929.9,0.00013798,2]
[407834482,1772820435620,721.80014401,0.0001142,2]
[407834483,1772820441666,500.0,0.0001142,2]
[407834484,1772820445523,500.0,0.0001142,2]
[407834485,1772820477922,536.0,0.0001342,2]
[407834486,1772820493782,150.0,0.00013762,2]
[407834487,1772820522515,200.0,0.00013745,2]
[407834488,1772820537156,7392.20985599,0.00013745,2]
[407834489,1772820537178,1614.95014401,0.00013745,2]
[407834490,1772820570297,-4468.01,0.000139,3]
[407834491,1772820570623,-1063.99,0.000139,3]
[407834493,1772820615841,-424.0,0.00013695,3]
[407834523,1772820632392,-360.79,0.00013733,2]
[407834525,1772820632402,-200.0,0.00013739,2]
[407834528,1772820632413,-267.0,0.0001413,2]
[407834530,1772820632425,-600.0,0.0001413,2]
[407834532,1772820632434,-2263.39145893,0.00014131,2]
[407834534,1772820632444,-256.89064142,0.00014131,2]
[407834536,1772820632453,-207.67497578,0.00014161,2]
[407834538,1772820632463,-600.0,0.00014166,2]
[407834540,1772820632472,-600.0,0.00014166,2]
[407834542,1772820632482,-472.10966284,0.00014166,2]
[407834544,1772820632491,-926.49519703,0.00014181,2]
[407834546,1772820632500,-300.0,0.0001423,2]
[407834548,1772820632509,-1200.0,0.00014259,2]
[407834550,1772820632519,-300.0,0.00014259,2]
[407834552,1772820632528,-826.0,0.0001426,2]
[407834554,1772820632537,-300.0,0.0001426,2]
[407834556,1772820632546,-166.66,0.00014262,2]
[407834558,1772820632556,-500.0,0.00014262,2]
[407834559,1772820632565,-500.0,0.00014262,2]
[407834560,1772820632576,-500.0,0.00014262,2]
[407834561,1772820632585,-193.72407298,0.00014262,2]
[407834562,1772820632595,-200.0,0.00014273,2]
[407834563,1772820632605,-1600.0,0.00014282,2]
[407834564,1772820632615,-2973.0,0.000143,2]
[407834565,1772820632624,-207.67497578,0.00014474,2]
[407834566,1772820632633,-1026.55,0.00014481,2]
[407834567,1772820632643,-278.4275,0.00014533,2]
[407834568,1772820632652,-166.66,0.00014545,2]
[407834569,1772820632661,-240.54867105,0.00014592,2]
[407834570,1772820632671,-200.0,0.00014592,2]
[407834571,1772820632680,-4992.2509805,0.00014633,2]
[407834572,1772820632690,-151.0,0.00014634,2]
[407834573,1772820632700,-151.0,0.00014634,2]
[407834574,1772820632710,-5532.0,0.000147,5]
[407834575,1772820632720,-658.0,0.00014765,2]
[407834576,1772820632729,-1855.53147924,0.00014772,2]
[407834577,1772820632739,-207.67497578,0.00014787,2]
[407834578,1772820632748,-225.5113768,0.000148,3]
[407834579,1772820632758,-360.70972198,0.000148,3]
[407834580,1772820632767,-391.51341497,0.000148,3]
[407834581,1772820632776,-389.14409843,0.000148,3]
[407834582,1772820632787,-150.0,0.00014827,2]
[407834583,1772820632796,-166.66,0.00014827,2]
[407834584,1772820632806,-1000.0,0.00014862,2]
[407834585,1772820632815,-411.5692,0.00014862,2]
[407834586,1772820632825,-4878.1905,0.00014862,2]
[407834587,1772820632835,-69126.34470485,0.00014863,2]
[407834588,1772820632844,-500.0,0.00014872,2]
[407834589,1772820632854,-500.0,0.00014872,2]
[407834590,1772820632864,-500.0,0.00014872,2]
[407834591,1772820632873,-500.0,0.00014872,2]
[407834592,1772820632882,-500.0,0.00014872,2]
[407834593,1772820632891,-500.0,0.00014872,2]
[407834594,1772820632901,-500.0,0.00014872,2]
[407834595,1772820632911,-500.0,0.00014872,2]
[407834596,1772820632921,-500.0,0.00014872,2]
[407834597,1772820632930,-500.0,0.00014872,2]
[407834598,1772820632940,-500.0,0.00014872,2]
[407834599,1772820632949,-500.0,0.00014872,2]
[407834600,1772820632959,-500.0,0.00014872,2]
[407834601,1772820632968,-255.39371409,0.00014872,2]
[407834602,1772820632978,-200.0,0.00014872,2]
[407834603,1772820632987,-151.0,0.00014872,2]
[407834604,1772820632999,-151.0,0.00014872,2]
[407834605,1772820633009,-151.0,0.00014872,2]
[407834606,1772820633018,-151.0,0.00014872,2]
[407834607,1772820633028,-151.0,0.00014872,2]
[407834608,1772820633038,-151.0,0.00014872,2]
[407834609,1772820633047,-151.0,0.00014872,2]
[407834610,1772820633057,-151.0,0.00014872,2]
[407834611,1772820633066,-151.0,0.00014872,2]
[407834612,1772820633077,-151.0,0.00014872,2]
[407834613,1772820633088,-151.0,0.00014872,2]
[407834614,1772820633098,-151.0,0.00014872,2]
[407834615,1772820633107,-500.0,0.00014872,2]
[407834616,1772820633117,-500.0,0.00014872,2]
[407834617,1772820633127,-500.0,0.00014872,2]
[407834618,1772820633136,-500.0,0.00014872,2]
[407834619,1772820633146,-569.75057649,0.00014872,2]
[407834620,1772820633156,-151.0,0.00014872,2]
[407834621,1772820633165,-151.0,0.00014872,2]
[407834622,1772820633175,-151.0,0.00014872,2]
[407834623,1772820633185,-151.0,0.00014872,2]
[407834624,1772820633195,-151.0,0.00014872,2]
[407834625,1772820633204,-151.0,0.00014872,2]
[407834626,1772820633214,-151.0,0.00014872,2]
[407834627,1772820633224,-151.0,0.00014872,2]
[407834628,1772820633234,-151.0,0.00014872,2]
[407834629,1772820633243,-151.0,0.00014872,2]
[407834630,1772820633253,-151.0,0.00014872,2]
[407834631,1772820633263,-151.0,0.00014872,2]
[407834632,1772820633273,-151.0,0.00014872,2]
[407834633,1772820633283,-151.0,0.00014872,2]
[407834634,1772820633293,-151.0,0.00014872,2]
[407834635,1772820633303,-151.0,0.00014872,2]
[407834636,1772820633313,-151.0,0.00014872,2]
[407834637,1772820633322,-151.0,0.00014872,2]
[407834638,1772820633332,-151.0,0.00014872,2]
[407834639,1772820633342,-151.0,0.00014872,2]
[407834640,1772820633355,-448.09390699,0.00014881,2]
[407834641,1772820633365,-15205.38245924,0.00014887,2]
[407834642,1772820633375,-1241.81256078,0.00014887,2]
[407834643,1772820633386,-1319.07265706,0.00014887,2]
[407834644,1772820633396,-384.26171502,0.00014887,2]
[407834645,1772820633405,-157.40983265,0.00014887,2]
[407834646,1772820633415,-2012.60091408,0.00014887,2]
[407834647,1772820633427,-665.0,0.00014959,2]
[407834648,1772820633436,-1448.5564,0.00014959,2]
[407834649,1772820633446,-3084.0,0.00014959,2]
[407834650,1772820633455,-263.25713202,0.00014971,2]
[407834651,1772820633465,-358.6,0.00014971,2]
[407834652,1772820633475,-358.6,0.00014971,2]
[407834653,1772820633485,-358.6,0.00014971,2]
[407834654,1772820633494,-358.6,0.00014971,2]
[407834655,1772820633504,-358.6,0.00014971,2]
[407834656,1772820633513,-500.0,0.00014973,2]
[407834657,1772820633523,-500.12727946,0.00014973,2]
[407834658,1772820633532,-500.0,0.00014973,2]
[407834659,1772820633543,-500.0,0.00014973,2]
[407834660,1772820633553,-573.58002767,0.00014973,2]
[407834661,1772820633563,-500.0,0.00014973,2]
[407834662,1772820633573,-500.0,0.00014973,2]
[407834663,1772820633582,-500.0,0.00014973,2]
[407834664,1772820633593,-501.86035421,0.00014973,2]
[407834665,1772820633602,-500.0,0.00014973,2]
[407834666,1772820633611,-500.0,0.00014973,2]
[407834667,1772820633621,-164.71106665,0.00014973,2]
[407834668,1772820633631,-500.0,0.00014973,2]
[407834669,1772820633641,-500.0,0.00014973,2]
[407834670,1772820633650,-501.72819961,0.00014973,2]
[407834671,1772820633660,-500.0,0.00014973,2]
[407834672,1772820633670,-500.0,0.00014973,2]
[407834673,1772820633680,-151.0,0.00014978,2]
[407834674,1772820633691,-500.0,0.00014979,2]
[407834675,1772820633700,-500.0,0.00014979,2]
[407834676,1772820633709,-1244.19749992,0.0001498,5]
[407834677,1772820633718,-1244.19749992,0.0001498,5]
[407834678,1772820633727,-720.21266631,0.0001498,5]
[407834679,1772820633737,-500.0,0.0001498,2]
[407834680,1772820633746,-500.0,0.0001498,2]
[407834681,1772820633756,-500.0,0.0001498,2]
[407834682,1772820633766,-500.0,0.0001498,2]
[407834683,1772820633776,-500.0,0.0001498,2]
[407834684,1772820633785,-500.0,0.0001498,2]
[407834685,1772820633799,-500.0,0.0001498,2]
[407834686,1772820633809,-494.28601797,0.0001498,2]
[407834687,1772820633819,-500.0,0.0001498,2]
[407834688,1772820633828,-500.0,0.0001498,2]
[407834689,1772820633838,-500.0,0.0001498,2]
[407834690,1772820633848,-500.0,0.0001498,2]
[407834691,1772820633857,-500.0,0.0001498,2]
[407834692,1772820633867,-500.0,0.0001498,2]
[407834693,1772820633877,-500.0,0.0001498,2]
[407834694,1772820633886,-500.0,0.0001498,2]
[407834695,1772820633896,-500.0,0.0001498,2]
[407834696,1772820633905,-500.0,0.0001498,2]
[407834697,1772820633915,-500.0,0.0001498,2]
[407834698,1772820633925,-500.0,0.0001498,2]
[407834699,1772820633934,-500.0,0.0001498,2]
[407834700,1772820633944,-500.0,0.0001498,2]
[407834701,1772820633954,-637.44948244,0.0001498,2]
[407834702,1772820633963,-500.0,0.0001498,2]
[407834703,1772820633973,-500.0,0.0001498,2]
[407834704,1772820633983,-500.0,0.0001498,2]
[407834705,1772820633997,-500.0,0.0001498,2]
[407834706,1772820634007,-500.0,0.0001498,2]
[407834707,1772820634016,-500.0,0.0001498,2]
[407834708,1772820634026,-500.0,0.0001498,2]
[407834709,1772820634036,-500.0,0.0001498,2]
[407834710,1772820634045,-500.0,0.0001498,2]
[407834711,1772820634055,-500.0,0.0001498,2]
[407834712,1772820634064,-500.0,0.0001498,2]
[407834713,1772820634074,-500.0,0.0001498,2]
[407834714,1772820634084,-500.0,0.0001498,2]
[407834715,1772820634093,-500.0,0.0001498,2]
[407834716,1772820634102,-500.0,0.0001498,2]
[407834717,1772820634113,-500.0,0.0001498,2]
[407834718,1772820634123,-500.0,0.0001498,2]
[407834719,1772820634133,-500.0,0.0001498,2]
[407834720,1772820634143,-203.3063975,0.0001498,2]
[407834721,1772820634153,-591.14247429,0.0001498,2]
[407834722,1772820634163,-179.92827376,0.0001498,2]
[407834723,1772820634172,-556.42839565,0.0001498,2]
[407834724,1772820634182,-500.0,0.0001498,2]
[407834725,1772820634195,-500.0,0.0001498,2]
[407834726,1772820634205,-500.0,0.0001498,2]
[407834727,1772820634215,-211.26767082,0.0001498,2]
[407834728,1772820634224,-500.0,0.0001498,2]
[407834729,1772820634234,-12855.36169594,0.00014981,2]
[407834730,1772820634249,-3399.20073241,0.00014981,2]
[407834731,1772820638114,-500.0,0.0001498,2]
[407834732,1772820638124,-500.0,0.0001498,2]
[407834733,1772820638134,-500.0,0.0001498,2]
[407834734,1772820638143,-500.0,0.0001498,2]
[407834735,1772820638151,-652.98276838,0.0001498,2]
[407834736,1772820638160,-200.0,0.0001498,2]
[407834737,1772820638169,-652.98276838,0.0001498,2]
[407834738,1772820638178,-652.98276838,0.0001498,2]
[407834739,1772820638187,-652.98276838,0.0001498,2]
[407834740,1772820638196,-652.98276838,0.0001498,2]
[407834741,1772820638205,-652.98276838,0.0001498,2]
[407834742,1772820638214,-652.98276838,0.0001498,2]
[407834743,1772820638223,-652.98276838,0.0001498,2]
[407834744,1772820638233,-652.98276838,0.0001498,2]
[407834745,1772820638242,-652.98276838,0.0001498,2]
[407834746,1772820638251,-652.98276838,0.0001498,2]
[407834747,1772820638259,-652.98276838,0.0001498,2]
[407834748,1772820638268,-652.98276838,0.0001498,2]
[407834749,1772820638286,-652.98276838,0.0001498,2]
[407834750,1772820638298,-652.98276838,0.0001498,2]
[407834751,1772820638308,-652.98276838,0.0001498,2]
[407834752,1772820638318,-652.98276838,0.0001498,2]
[407834753,1772820638327,-652.98276838,0.0001498,2]
[407834754,1772820638336,-652.98276838,0.0001498,2]
[407834755,1772820638351,-652.98276838,0.0001498,2]
[407834756,1772820638360,-652.98276838,0.0001498,2]
[407834757,1772820638370,-652.98276838,0.0001498,2]
[407834758,1772820638379,-652.98276838,0.0001498,2]
[407834759,1772820638390,-503.23403544,0.0001498,2]
[407834761,1772820638756,-149.74873294,0.0001498,2]
[407834762,1772820638765,-652.98276838,0.0001498,2]
[407834763,1772820638775,-652.98276838,0.0001498,2]
[407834764,1772820638784,-652.98276838,0.0001498,2]
[407834765,1772820638793,-652.98276838,0.0001498,2]
[407834766,1772820638802,-589.0301457,0.0001498,2]
[407834767,1772820638814,-63.95262268,0.0001498,2]
[407834768,1772820638823,-610.23236838,0.0001498,2]
[407834769,1772820638834,-42.7504,0.0001498,2]
[407834770,1772820638843,-652.98276838,0.0001498,2]
[407834771,1772820638852,-261.0575505,0.0001498,2]
[407834772,1772820638871,-391.92521788,0.0001498,2]
[407834773,1772820638880,-652.98276838,0.0001498,2]
[407834774,1772820638889,-652.98276838,0.0001498,2]
[407834775,1772820638898,-652.98276838,0.0001498,2]
[407834776,1772820638907,-652.98276838,0.0001498,2]
[407834777,1772820638916,-652.98276838,0.0001498,2]
[407834778,1772820638925,-652.98276838,0.0001498,2]
[407834779,1772820638934,-652.98276838,0.0001498,2]
[407834780,1772820638947,-652.98276838,0.0001498,2]
[407834781,1772820638956,-652.98276838,0.0001498,2]
[407834782,1772820638966,-652.98276838,0.0001498,2]
[407834783,1772820638976,-652.98276838,0.0001498,2]
[407834784,1772820638985,-652.98276838,0.0001498,2]
[407834785,1772820638994,-652.98276838,0.0001498,2]
[407834786,1772820639003,-484.80273247,0.0001498,2]
[407834787,1772820639022,-168.18003591,0.0001498,2]
[407834788,1772820639031,-652.98276838,0.0001498,2]
[407834789,1772820639041,-652.98276838,0.0001498,2]
[407834790,1772820639052,-652.98276838,0.0001498,2]
[407834791,1772820639063,-652.98276838,0.0001498,2]
[407834792,1772820639073,-2483745.43757165,0.00014981,2]
[407834793,1772820639082,-13855.45381937,0.00014987,2]
[407834794,1772820639092,-250.0,0.00015,2]
[407834795,1772820639101,-793.15072587,0.00015044,2]
[407834796,1772820639111,-500.0,0.00015073,2]
[407834797,1772820639120,-500.0,0.00015073,2]
[407834798,1772820639129,-494.64624274,0.00015073,2]
[407834799,1772820639138,-500.0,0.00015073,2]
[407834800,1772820639151,-501.11845623,0.00015073,2]
[407834801,1772820639161,-500.0,0.0001508,2]
[407834802,1772820639170,-500.0,0.0001508,2]
[407834803,1772820639180,-247.76,0.00015101,2]
[407834804,1772820639189,-2892.78691788,0.00015103,2]
[407834805,1772820639199,-500.0,0.00015146,2]
[407834806,1772820639209,-1026.55,0.00015171,2]
[407834808,1772820639218,-450.0,0.00015199,2]
[407834810,1772820639228,-2264.01,0.0001531,2]
[407834812,1772820639237,-350.24,0.0001531,2]
[407834814,1772820639246,-9999.99,0.0001531,2]
[407834816,1772820639255,-9999.99,0.0001531,2]
[407834819,1772820639266,-7288.86,0.0001531,2]
[407834821,1772820639275,-8997.9,0.0001531,2]
[407834822,1772820639285,-150.99,0.0001531,2]
[407834824,1772820639297,-1869.35,0.0001531,2]
[407834826,1772820639306,-5320.96,0.0001531,2]
[407834828,1772820639315,-150.99,0.0001531,2]
[407834831,1772820639325,-299.99,0.0001531,2]
[407834832,1772820639334,-415.66,0.0001531,2]
[407834835,1772820639349,-1420.4,0.0001531,2]
[407834837,1772820639359,-999.99,0.0001531,2]
[407834839,1772820639368,-29999.99,0.0001531,2]
[407834841,1772820639378,-9999.99,0.0001531,2]
[407834843,1772820639388,-500.0,0.00015373,2]
[407834845,1772820639397,-500.0,0.00015373,2]
[407834847,1772820639408,-500.0,0.00015373,2]
[407834849,1772820639417,-500.0,0.00015373,2]
[407834851,1772820639429,-500.0,0.0001542,2]
[407834853,1772820639439,-200.0,0.0001542,2]
[407834855,1772820639448,-15205.38245924,0.00015444,2]
[407834857,1772820639457,-2093.63,0.00015471,2]
[407834859,1772820639467,-300.0,0.0001551,2]
[407834861,1772820639476,-5000.0,0.0001551,2]
[407834863,1772820639487,-250.0,0.0001551,2]
[407834865,1772820639496,-500.0,0.00015521,2]
[407834867,1772820639506,-500.0,0.00015521,2]
[407834869,1772820639517,-500.0,0.00015521,2]
[407834871,1772820639526,-1000.0,0.00015521,2]
[407834873,1772820639535,-500.0,0.00015521,2]
[407834875,1772820639546,-500.0,0.00015521,2]
[407834877,1772820639556,-1000.0,0.00015521,2]
[407834879,1772820639566,-500.0,0.00015521,2]
[407834881,1772820639576,-600.0,0.00015543,2]
[407834883,1772820639587,-150.0,0.00015577,2]
[407834885,1772820639596,-5000.0,0.00015577,2]
[407834887,1772820639605,-300.0,0.00015617,2]
[407834889,1772820639614,-420.0,0.00015619,2]
[407834891,1772820639623,-300.0,0.0001562,2]
[407834893,1772820639633,-305.05958288,0.0001562,2]
[407834895,1772820639642,-1000.0,0.00015621,2]
[407834897,1772820639651,-1000.0,0.00015621,2]
[407834899,1772820639661,-424.0,0.00015658,3]
[407834901,1772820639670,-1680.0,0.00015685,2]
[407834903,1772820639681,-203.71480102,0.00015687,2]
[407834905,1772820639691,-289.91892459,0.00015687,2]
[407834907,1772820639701,-500.0,0.00015687,2]
[407834909,1772820639710,-362.62096704,0.00015694,2]
[407834911,1772820639719,-1026.55,0.00015861,2]
[407834913,1772820639729,-2012.60091403,0.0001589,2]
[407834915,1772820639738,-150.0,0.000159,2]
[407834917,1772820639749,-1000.0,0.00015921,2]
[407834919,1772820639758,-255.0,0.00015954,2]
[407834921,1772820639768,-258.69744367,0.0001596,2]
[407834923,1772820639778,-200.0,0.00015968,2]
[407834925,1772820639788,-500.0,0.00015996,2]
[407834927,1772820639797,-15205.38245924,0.00016001,2]
[407834929,1772820639806,-1600.0,0.00016067,2]
[407834931,1772820639816,-500.0,0.00016068,2]
[407834933,1772820639826,-1003.37044262,0.00016068,2]
[407834936,1772820639835,-7979.49,0.00016116,2]
[407834938,1772820639845,-500.0,0.00016137,2]
[407834939,1772820639855,-1134.58548457,0.00016168,2]
[407834941,1772820639864,-500.0,0.00016173,2]
[407834943,1772820639873,-500.0,0.00016173,2]
[407834944,1772820639882,-500.0,0.00016173,2]
[407834946,1772820639892,-500.0,0.00016173,2]
[407834948,1772820639901,-500.0,0.00016173,2]
[407834951,1772820639911,-57037.40647593,0.000162,5]
[407834953,1772820639919,-166.22,0.0001621,2]
[407834955,1772820639929,-500.0,0.00016253,2]
[407834958,1772820639947,-500.0,0.00016253,2]
[407834960,1772820639957,-500.0,0.00016254,2]
[407834962,1772820639968,-500.0,0.00016254,2]
[407834964,1772820639978,-500.0,0.00016254,2]
[407834966,1772820639988,-500.0,0.00016254,2]
[407834968,1772820639998,-500.0,0.00016254,2]
[407834971,1772820640008,-500.0,0.00016254,2]
[407834973,1772820640017,-500.0,0.00016254,2]
[407834975,1772820640026,-361.46682815,0.00016254,2]
[407834976,1772820640035,-500.0,0.00016254,2]
[407834979,1772820640045,-500.0,0.00016254,2]
[407834981,1772820640055,-274.62,0.00016254,2]
[407834982,1772820640064,-500.0,0.00016254,2]
[407834984,1772820640073,-500.0,0.00016254,2]
[407834986,1772820640083,-500.0,0.00016254,2]
[407834988,1772820640092,-500.0,0.00016254,2]
[407834991,1772820640102,-283.81037588,0.00016254,2]
[407834992,1772820640111,-500.0,0.00016254,2]
[407834994,1772820640120,-500.0,0.00016254,2]
[407834996,1772820640130,-500.0,0.00016254,2]
[407834998,1772820640140,-500.0,0.00016254,2]
[407835000,1772820640149,-500.0,0.00016254,2]
[407835002,1772820640158,-500.0,0.00016254,2]
[407835004,1772820640168,-500.0,0.00016254,2]
[407835006,1772820640177,-500.0,0.00016254,2]
[407835008,1772820640187,-500.0,0.00016254,2]
[407835010,1772820640196,-500.0,0.00016254,2]
[407835013,1772820640206,-503.7310091,0.00016254,2]
[407835014,1772820640215,-150.0,0.00016255,14]
[407835018,1772820640225,-500.0,0.00016314,2]
[407835020,1772820640235,-500.0,0.00016329,2]
[407835024,1772820640244,-500.0,0.00016343,2]
[407835027,1772820640254,-184.94185274,0.00016343,2]
[407835030,1772820640263,-228.32,0.00016438,2]
[407835032,1772820640273,-1500.0,0.00016468,2]
[407835035,1772820640283,-166.22,0.0001648,2]
[407835038,1772820640294,-153.62,0.000165,2]
[407835040,1772820640304,-153.62,0.000165,30]
[407835041,1772820640313,-240.02207299,0.00016516,2]
[407835043,1772820640323,-1026.55,0.0001655,2]
[407835046,1772820640333,-15205.38245924,0.00016558,2]
[407835047,1772820640345,-450.0,0.00016569,2]
[407835050,1772820640360,-166.34,0.00016712,2]
[407835052,1772820640371,-1000.0,0.00016721,2]